[Event "ONJK-A 2019"]
[Site "Borne"]
[Date "2019.08.06"]
[Round "3.8"]
[White "Vitharana, Annelies"]
[Black "Merkon, Oseb"]
[Result "0-1"]
[ECO "B33"]
[WhiteElo "1768"]
[BlackElo "2013"]
[Annotator "NA"]
[PlyCount "98"]
[EventDate "2019.08.05"]
[EventType "swiss"]
[EventCountry "NED"]
[SourceTitle "playchess.com"]
[Source "ChessBase"]
[SourceQuality "1"]
[TimeControl "5400+30"]

1. e4 {[%emt 0:00:00]} c5 {[%emt 0:00:00]} 2. Nf3 {[%emt 0:00:00]} Nc6 {[%emt 0:00:00]} 3. d4 {[%emt 0:00:00]} cxd4 {[%emt 0:00:00]} 4. Nxd4 {[%emt 0:00:08]} Nf6 {[%emt 0:00:00]} 5. Nc3 {[%emt 0:00:36]} e5 {[%emt 0:00:00]} 6. Ndb5 {[%emt 0:05:23]} d6 {[%emt 0:00:16]} 7. Bg5 {[%emt 0:05:58]} a6 {[%emt 0:00:16]} 8. Na3 {[%emt 0:00:52]} b5 {[%emt 0:00:11]} 9. Nd5 {[%emt 0:08:16]} Be7 {[%emt 0:00:16]} 10. Nxe7 {[%emt 0:03:27]} Nxe7 {[%emt 0:03:07]} 11. Bd3 {[%emt 0:05:14]} h6 {[%emt 0:03:58]} 12. Bd2 {[%emt 0:02:20]} Bb7 {[%emt 0:14:18]} 13. Qe2 {[%emt 0:03:12]} d5 {[%emt 0:06:47]} 14. f3 {[%emt 0:08:46]} O-O {[%emt 0:09:50]} 15. c3 {[%emt 0:14:47]} Ng6 {[%emt 0:06:31]} 16. g3 {[%emt 0:03:03]} Qd6 {[%emt 0:03:37]} 17. O-O-O {[%emt 0:10:41]} dxe4 {[%emt 0:19:54]} 18. fxe4 {[%emt 0:01:51]} Qc6 {[%emt 0:03:01]} 19. Rhe1 {[%emt 0:03:08]} Nd7 {[%emt 0:05:54]} 20. h4 {[%emt 0:05:50]} Nc5 {[%emt 0:01:16]} 21. Bc2 {[%emt 0:01:21]} Rac8 {[%emt 0:05:03]} 22. h5 {[%emt 0:02:32]} Ne7 {[%emt 0:00:06]} 23. Kb1 {[%emt 0:01:00]} Ne6 {[%emt 0:03:38]} 24. Bd3 {[%emt 0:02:30]} Rfd8 {[%emt 0:01:10]} 25. Bc2 {[%emt 0:04:12]} Rd7 {[%emt 0:02:36]} 26. Be3 {[%emt 0:03:31]} Rcd8 {[%emt 0:00:17]} 27. Rxd7 {[%emt 0:02:56]} Rxd7 {[%emt 0:00:06]} 28. Ka1 {[%emt 0:01:34]} Nc5 {[%emt 0:00:26]} 29. Qg4 {[%emt 0:00:44]} Qe6 {[%emt 0:02:11]} 30. Qf3 {[%emt 0:00:29]} Qc6 {[%emt 0:04:57]} 31. Qg4 {[%emt 0:00:09]} Rd6 {[%emt 0:01:35]} 32. Bc1 {[%emt 0:00:57]} Nc8 {[%emt 0:02:22]} 33. Nb1 {[%emt 0:00:29]} Nb6 {[%emt 0:00:20]} 34. Nd2 {[%emt 0:00:26]} Nca4 {[%emt 0:00:46]} 35. Qf3 {[%emt 0:00:22]} b4 {[%emt 0:00:21]} 36. Nb1 {[%emt 0:00:40]} a5 {[%emt 0:00:54]} 37. g4 {[%emt 0:00:25]} Nc5 {[%emt 0:00:51]} 38. g5 {[%emt 0:00:25]} a4 {[%emt 0:00:42]} 39. cxb4 {[%emt 0:00:32]} Ne6 {[%emt 0:00:12]} 40. Bd3 {[%emt 0:00:42]} Nd4 {[%emt 0:00:53]} 41. Qe3 {[%emt 0:00:28]} hxg5 {[%emt 0:00:34]} 42. Nc3 {[%emt 0:00:27]} Nc4 {[%emt 0:00:39]} 43. Qg3 {[%emt 0:00:34]} Nxb2 {[%emt 0:00:25]} 44. Bxb2 {[%emt 0:00:26]} a3 {[%emt 0:00:03]} 45. Bxa3 {[%emt 0:00:35]} Qxc3+ {[%emt 0:00:02]} 46. Bb2 {[%emt 0:00:26]} Nc2+ {[%emt 0:00:04]} 47. Kb1 {[%emt 0:00:33]} Qxe1+ {[%emt 0:00:02]} 48. Qxe1 {[%emt 0:00:29]} Nxe1 {[%emt 0:00:02]} 49. Be2 {[%emt 0:00:26]} Rd2 {[%emt 0:00:16]} 0-1

[Event "ONJK-A 2019"]
[Site "Borne"]
[Date "2019.08.06"]
[Round "3.9"]
[White "Hofstra, Tijmen"]
[Black "Godde, Matthias"]
[Result "0-1"]
[ECO "B20"]
[WhiteElo "1732"]
[BlackElo "1989"]
[Annotator "NA"]
[PlyCount "68"]
[EventDate "2019.08.05"]
[EventType "swiss"]
[EventCountry "NED"]
[SourceTitle "playchess.com"]
[Source "ChessBase"]
[SourceQuality "1"]
[TimeControl "5400+30"]

1. e4 {[%emt 0:00:00]} c5 {[%emt 0:00:10]} 2. b3 {[%emt 0:00:00]} Nc6 {[%emt 0:01:50]} 3. Bb2 {[%emt 0:00:18]} e5 {[%emt 0:00:54]} 4. Bb5 {[%emt 0:00:16]} Nd4 {[%emt 0:09:05]} 5. Bc4 {[%emt 0:00:56]} Nf6 {[%emt 0:00:21]} 6. d3 {[%emt 0:00:05]} b5 {[%emt 0:01:35]} 7. Bd5 {[%emt 0:00:08]} Nxd5 {[%emt 0:00:32]} 8. exd5 {[%emt 0:00:08]} Bb7 {[%emt 0:01:23]} 9. c4 {[%emt 0:00:07]} Be7 {[%emt 0:01:32]} 10. Nf3 {[%emt 0:02:03]} O-O {[%emt 0:01:21]} 11. O-O {[%emt 0:00:14]} d6 {[%emt 0:01:09]} 12. Nbd2 {[%emt 0:00:37]} Nxf3+ {[%emt 0:02:02]} 13. Qxf3 {[%emt 0:00:16]} b4 {[%emt 0:00:23]} 14. Qg3 {[%emt 0:00:21]} Bh4 {[%emt 0:01:05]} 15. Qf3 {[%emt 0:00:17]} f5 {[%emt 0:00:28]} 16. g3 {[%emt 0:01:09]} Bg5 {[%emt 0:01:33]} 17. Qe2 {[%emt 0:00:13]} f4 {[%emt 0:02:27]} 18. Nf3 {[%emt 0:01:00]} Bc8 {[%emt 0:01:12]} 19. Bc1 {[%emt 0:01:12]} Bh3 {[%emt 0:01:29]} 20. Re1 {[%emt 0:01:07]} Bh6 {[%emt 0:01:06]} 21. a3 {[%emt 0:02:00]} fxg3 {[%emt 0:00:23]} 22. fxg3 {[%emt 0:00:10]} Bg4 {[%emt 0:05:38]} 23. Rf1 {[%emt 0:01:01]} Qf6 {[%emt 0:00:58]} 24. Kg2 {[%emt 0:00:24]} e4 {[%emt 0:00:28]} 25. Qxe4 {[%emt 0:00:42]} Bxf3+ {[%emt 0:00:45]} 26. Rxf3 {[%emt 0:00:05]} Qxa1 {[%emt 0:00:31]} 27. Bxh6 {[%emt 0:01:12]} Rxf3 {[%emt 0:01:14]} 28. Qxf3 {[%emt 0:01:00]} gxh6 {[%emt 0:00:10]} 29. Qg4+ {[%emt 0:00:04]} Qg7 {[%emt 0:00:13]} 30. Qe6+ {[%emt 0:00:04]} Qf7 {[%emt 0:00:41]} 31. Qxd6 {[%emt 0:00:07]} Re8 {[%emt 0:00:40]} 32. Qxc5 {[%emt 0:01:07]} Re2+ {[%emt 0:00:11]} 33. Kg1 {[%emt 0:00:09]} Re1+ {[%emt 0:00:15]} 34. Kg2 {[%emt 0:00:03]} Qf1# {[%emt 0:00:04]} 0-1

[Event "ONJK-A 2019"]
[Site "Borne"]
[Date "2019.08.06"]
[Round "3.10"]
[White "Akulova, Alicia"]
[Black "Butzen, Robin"]
[Result "0-1"]
[ECO "B34"]
[WhiteElo "1702"]
[BlackElo "1967"]
[Annotator "NA"]
[PlyCount "42"]
[EventDate "2019.08.05"]
[EventType "swiss"]
[EventCountry "NED"]
[SourceTitle "playchess.com"]
[Source "ChessBase"]
[SourceQuality "1"]
[TimeControl "5400+30"]

1. e4 {[%emt 0:00:00]} c5 {[%emt 0:00:16]} 2. Nf3 {[%emt 0:00:00]} g6 {[%emt 0:00:05]} 3. d4 {[%emt 0:00:00]} cxd4 {[%emt 0:00:05]} 4. Nxd4 {[%emt 0:00:00]} Bg7 {[%emt 0:00:04]} 5. Be3 {[%emt 0:00:49]} Nf6 {[%emt 0:00:42]} 6. Nc3 {[%emt 0:00:59]} Nc6 {[%emt 0:01:45]} 7. f3 {[%emt 0:01:02]} O-O {[%emt 0:00:08]} 8. Qd2 {[%emt 0:01:26]} d5 {[%emt 0:02:34]} 9. exd5 {[%emt 0:05:36]} Nxd5 {[%emt 0:03:07]} 10. Nxd5 {[%emt 0:04:32]} Qxd5 {[%emt 0:05:00]} 11. Nxc6 {[%emt 0:06:00]} Qxc6 {[%emt 0:01:09]} 12. c3 {[%emt 0:04:51]} Bf5 {[%emt 0:03:56]} 13. Be2 {[%emt 0:01:18]} Rfd8 {[%emt 0:00:32]} 14. Qc1 {[%emt 0:00:29]} Bd3 {[%emt 0:00:05]} 15. Bd1 {[%emt 0:04:43]} e5 {[%emt 0:04:59]} 16. Kf2 {[%emt 0:01:09]} f5 {[%emt 0:01:00]} 17. Re1 {[%emt 0:02:53]} f4 {[%emt 0:02:24]} 18. Bb3+ {[%emt 0:01:36]} Kh8 {[%emt 0:01:05]} 19. Bxf4 {[%emt 0:01:28]} exf4 {[%emt 0:00:11]} 20. Qxf4 {[%emt 0:00:16]} Re8 {[%emt 0:02:03]} 21. Qf7 {[%emt 0:05:23]} Qc5+ {[%emt 0:05:00]} 0-1

[Event "ONJK-A 2019"]
[Site "Borne"]
[Date "2019.08.06"]
[Round "3.11"]
[White "Klaren, Duncan"]
[Black "Hofstra, Tetske"]
[Result "1-0"]
[ECO "C56"]
[WhiteElo "1964"]
[BlackElo "1126"]
[Annotator "NA"]
[PlyCount "61"]
[EventDate "2019.08.05"]
[EventType "swiss"]
[EventCountry "NED"]
[SourceTitle "playchess.com"]
[Source "ChessBase"]
[SourceQuality "1"]
[TimeControl "5400+30"]

1. e4 {[%emt 0:00:00]} e5 {[%emt 0:00:00]} 2. Nf3 {[%emt 0:00:00]} Nc6 {[%emt 0:00:22]} 3. d4 {[%emt 0:00:00]} Bd6 {[%emt 0:00:57]} 4. Bc4 {[%emt 0:00:28]} Nf6 {[%emt 0:01:38]} 5. dxe5 {[%emt 0:00:14]} Nxe5 {[%emt 0:00:38]} 6. Nxe5 {[%emt 0:00:15]} Bxe5 {[%emt 0:00:06]} 7. f4 {[%emt 0:00:07]} Bd6 {[%emt 0:01:39]} 8. e5 {[%emt 0:00:11]} Qe7 {[%emt 0:00:12]} 9. Qe2 {[%emt 0:00:33]} Bc5 {[%emt 0:02:07]} 10. exf6 {[%emt 0:00:11]} Qxe2+ {[%emt 0:00:37]} 11. Bxe2 {[%emt 0:00:05]} gxf6 {[%emt 0:00:27]} 12. Nc3 {[%emt 0:00:06]} b6 {[%emt 0:01:07]} 13. Bf3 {[%emt 0:00:39]} c6 {[%emt 0:00:24]} 14. Bd2 {[%emt 0:00:25]} Ba6 {[%emt 0:00:30]} 15. O-O-O {[%emt 0:00:25]} O-O-O {[%emt 0:00:09]} 16. Ne4 {[%emt 0:00:27]} Be7 {[%emt 0:00:18]} 17. Bc3 {[%emt 0:00:11]} Rhe8 {[%emt 0:00:30]} 18. Nxf6 {[%emt 0:00:19]} Rf8 {[%emt 0:01:28]} 19. Bg4 {[%emt 0:00:20]} Bxf6 {[%emt 0:00:15]} 20. Bxf6 {[%emt 0:00:05]} Rde8 {[%emt 0:01:20]} 21. Bxd7+ {[%emt 0:00:06]} Kc7 {[%emt 0:00:47]} 22. Bxe8 {[%emt 0:00:07]} Rxe8 {[%emt 0:00:15]} 23. Rhe1 {[%emt 0:00:04]} Rg8 {[%emt 0:00:33]} 24. Re7+ {[%emt 0:00:14]} Kb8 {[%emt 0:01:24]} 25. Rxf7 {[%emt 0:00:07]} Bc8 {[%emt 0:00:50]} 26. Rd8 {[%emt 0:00:54]} Rxd8 {[%emt 0:01:19]} 27. Bxd8 {[%emt 0:00:09]} Be6 {[%emt 0:00:32]} 28. Rf8 {[%emt 0:00:14]} Kb7 {[%emt 0:00:37]} 29. f5 {[%emt 0:00:09]} Bxa2 {[%emt 0:00:21]} 30. b3 {[%emt 0:00:06]} Ka6 {[%emt 0:00:40]} 31. Kb2 {[%emt 0:00:12]} 1-0

[Event "ONJK-A 2019"]
[Site "Borne"]
[Date "2019.08.06"]
[Round "3.12"]
[White "Brachmann, Jules"]
[Black "Albers, Sasa"]
[Result "0-1"]
[ECO "B10"]
[WhiteElo "1152"]
[BlackElo "1889"]
[Annotator "NA"]
[PlyCount "48"]
[EventDate "2019.08.05"]
[EventType "swiss"]
[EventCountry "NED"]
[SourceTitle "playchess.com"]
[Source "ChessBase"]
[SourceQuality "1"]
[TimeControl "5400+30"]

1. e4 c6 {[%emt 0:00:00]} 2. Nc3 {[%emt 0:05:34]} d5 {[%emt 0:00:00]} 3. exd5 {[%emt 0:00:40]} cxd5 {[%emt 0:00:00]} 4. Nf3 {[%emt 0:00:57]} Nc6 {[%emt 0:00:00]} 5. Bb5 {[%emt 0:00:09]} Bg4 {[%emt 0:01:44]} 6. d3 {[%emt 0:07:19]} e6 {[%emt 0:05:22]} 7. Bf4 {[%emt 0:11:25]} d4 {[%emt 0:01:43]} 8. Ne2 {[%emt 0:04:27]} Qa5+ {[%emt 0:00:07]} 9. Bd2 {[%emt 0:00:31]} Qxb5 {[%emt 0:00:02]} 10. h3 {[%emt 0:00:29]} Bxf3 {[%emt 0:00:03]} 11. gxf3 {[%emt 0:01:40]} Nge7 {[%emt 0:00:58]} 12. Nf4 {[%emt 0:00:23]} Nd5 {[%emt 0:00:33]} 13. Nxd5 {[%emt 0:00:37]} Qxd5 {[%emt 0:00:09]} 14. Qe2 {[%emt 0:00:41]} Bb4 {[%emt 0:00:16]} 15. a3 {[%emt 0:00:26]} Qa5 {[%emt 0:00:30]} 16. Rd1 {[%emt 0:01:54]} Bxd2+ {[%emt 0:00:06]} 17. Qxd2 {[%emt 0:00:23]} Qxd2+ {[%emt 0:00:03]} 18. Rxd2 {[%emt 0:00:08]} O-O {[%emt 0:00:17]} 19. Rg1 {[%emt 0:00:09]} Ne5 {[%emt 0:00:09]} 20. Ke2 {[%emt 0:00:15]} Ng6 {[%emt 0:00:11]} 21. Rg4 {[%emt 0:00:15]} Rfd8 {[%emt 0:00:09]} 22. h4 {[%emt 0:00:51]} h5 {[%emt 0:00:07]} 23. Re4 {[%emt 0:00:45]} f5 {[%emt 0:00:02]} 24. Rxe6 {[%emt 0:00:51]} Nf4+ {[%emt 0:00:03]} 0-1

[Event "ONJK-A 2019"]
[Site "Borne"]
[Date "2019.08.07"]
[Round "4.1"]
[White "Noordenbos, Daan"]
[Black "Maerevoet, Sim"]
[Result "1/2-1/2"]
[ECO "C42"]
[WhiteElo "2042"]
[BlackElo "2321"]
[Annotator "ChessBase"]
[PlyCount "28"]
[EventDate "2019.08.05"]
[EventType "swiss"]
[EventCountry "NED"]
[SourceTitle "playchess.com"]
[Source "ChessBase"]
[SourceQuality "1"]
[TimeControl "5400+30"]

1. e4 {[%emt 0:00:00]} e5 {[%emt 0:00:00]} 2. Nf3 {[%emt 0:00:00]} Nf6 {[%emt 0:00:00]} 3. Nxe5 {[%emt 0:00:00]} d6 {[%emt 0:00:00]} 4. Nf3 {[%emt 0:00:00]} Nxe4 {[%emt 0:00:00]} 5. Nc3 {[%emt 0:00:04]} Nxc3 {[%emt 0:00:02]} 6. dxc3 {[%emt 0:00:05]} Be7 {[%emt 0:00:19]} 7. Bd3 {[%emt 0:04:07]} Nc6 {[%emt 0:05:02]} 8. O-O {[%emt 0:01:48]} Bg4 {[%emt 0:03:18]} 9. Re1 {[%emt 0:04:30]} O-O {[%emt 0:03:39]} 10. h3 {[%emt 0:03:21]} Be6 {[%emt 0:03:00]} 11. Nd4 {[%emt 0:07:28]} Nxd4 {[%emt 0:00:54]} 12. cxd4 {[%emt 0:00:08]} c6 {[%emt 0:04:18]} 13. c3 {[%emt 0:05:00]} Re8 {[%emt 0:06:23]} 14. Rxe6 {[%emt 0:25:54]} fxe6 {[%emt 0:00:09]} 1/2-1/2

[Event "ONJK-A 2019"]
[Site "Borne"]
[Date "2019.08.07"]
[Round "4.2"]
[White "Shakhverdian, William"]
[Black "Ypma, Jord"]
[Result "1/2-1/2"]
[ECO "D45"]
[WhiteElo "2045"]
[BlackElo "1984"]
[Annotator "NA"]
[PlyCount "62"]
[EventDate "2019.08.05"]
[EventType "swiss"]
[EventCountry "NED"]
[SourceTitle "playchess.com"]
[Source "ChessBase"]
[SourceQuality "1"]
[TimeControl "5400+30"]

1. d4 {[%emt 0:00:00]} d5 {[%emt 0:00:08]} 2. c4 {[%emt 0:00:00]} c6 {[%emt 0:00:29]} 3. Nf3 {[%emt 0:00:00]} Nf6 {[%emt 0:00:08]} 4. Nc3 {[%emt 0:01:12]} e6 {[%emt 0:00:07]} 5. e3 {[%emt 0:00:30]} a6 {[%emt 0:00:57]} 6. cxd5 {[%emt 0:01:32]} exd5 {[%emt 0:02:08]} 7. Bd3 {[%emt 0:00:07]} Be7 {[%emt 0:04:34]} 8. Bd2 {[%emt 0:01:29]} O-O {[%emt 0:01:43]} 9. h3 {[%emt 0:00:28]} Nbd7 {[%emt 0:01:53]} 10. O-O {[%emt 0:00:38]} Re8 {[%emt 0:00:35]} 11. Rc1 {[%emt 0:00:50]} Nf8 {[%emt 0:05:15]} 12. Na4 {[%emt 0:03:21]} Ng6 {[%emt 0:02:50]} 13. Qb3 {[%emt 0:07:24]} Bd6 {[%emt 0:15:29]} 14. Nb6 {[%emt 0:08:47]} Rb8 {[%emt 0:01:11]} 15. Nxc8 {[%emt 0:00:45]} Qxc8 {[%emt 0:00:29]} 16. Qc2 {[%emt 0:00:07]} Ne4 {[%emt 0:07:09]} 17. Be1 {[%emt 0:05:01]} Qd8 {[%emt 0:03:32]} 18. Qe2 {[%emt 0:09:19]} f5 {[%emt 0:04:01]} 19. Nd2 {[%emt 0:01:05]} f4 {[%emt 0:09:27]} 20. Bxe4 {[%emt 0:00:36]} dxe4 {[%emt 0:00:13]} 21. Qg4 {[%emt 0:03:22]} Bc7 {[%emt 0:06:48]} 22. Nc4 {[%emt 0:04:19]} Qd5 {[%emt 0:06:05]} 23. exf4 {[%emt 0:01:27]} Nxf4 {[%emt 0:01:06]} 24. Ne3 {[%emt 0:00:27]} Qf7 {[%emt 0:01:55]} 25. g3 {[%emt 0:05:53]} h5 {[%emt 0:00:52]} 26. Qd1 {[%emt 0:00:16]} Nxh3+ {[%emt 0:02:19]} 27. Kg2 {[%emt 0:00:05]} Ng5 {[%emt 0:00:20]} 28. Qb3 {[%emt 0:02:40]} Re6 {[%emt 0:01:36]} 29. Rh1 {[%emt 0:01:31]} Rf8 {[%emt 0:05:02]} 30. Rc5 {[%emt 0:00:15]} Nf3 {[%emt 0:03:42]} 31. Rf5 {[%emt 0:02:31]} Qd7 {[%emt 0:04:41]} 1/2-1/2

[Event "ONJK-A 2019"]
[Site "Borne"]
[Date "2019.08.07"]
[Round "4.3"]
[White "Van Malder, Dries"]
[Black "Baselmans, Luuk"]
[Result "1/2-1/2"]
[ECO "C01"]
[WhiteElo "2178"]
[BlackElo "2250"]
[Annotator "ChessBase"]
[PlyCount "52"]
[EventDate "2019.08.05"]
[EventType "swiss"]
[EventCountry "NED"]
[SourceTitle "playchess.com"]
[Source "ChessBase"]
[SourceQuality "1"]
[TimeControl "5400+30"]

1. e4 {[%emt 0:00:00]} e6 {[%emt 0:00:00]} 2. d4 {[%emt 0:00:00]} d5 {[%emt 0:00:00]} 3. exd5 {[%emt 0:00:00]} exd5 {[%emt 0:00:03]} 4. Nf3 {[%emt 0:00:00]} Bd6 {[%emt 0:00:48]} 5. c4 {[%emt 0:00:02]} Nf6 {[%emt 0:00:28]} 6. Bd3 {[%emt 0:00:48]} dxc4 {[%emt 0:01:05]} 7. Bxc4 {[%emt 0:00:10]} O-O {[%emt 0:00:20]} 8. O-O {[%emt 0:00:06]} Nbd7 {[%emt 0:00:54]} 9. Nc3 {[%emt 0:04:05]} Nb6 {[%emt 0:00:34]} 10. Bb3 {[%emt 0:00:11]} c6 {[%emt 0:01:41]} 11. Bg5 {[%emt 0:00:57]} Be7 {[%emt 0:01:10]} 12. Qd3 {[%emt 0:13:21]} Nfd5 {[%emt 0:04:52]} 13. Bxe7 {[%emt 0:02:38]} Nxe7 {[%emt 0:01:22]} 14. Rfe1 {[%emt 0:03:24]} Bf5 {[%emt 0:02:57]} 15. Qe3 {[%emt 0:05:59]} Ned5 {[%emt 0:14:29]} 16. Qe5 {[%emt 0:07:16]} Be6 {[%emt 0:03:01]} 17. Ng5 {[%emt 0:04:44]} Re8 {[%emt 0:02:37]} 18. Qg3 {[%emt 0:02:44]} Qf6 {[%emt 0:07:31]} 19. Rad1 {[%emt 0:10:53]} h6 {[%emt 0:03:45]} 20. Nce4 {[%emt 0:02:58]} Qg6 {[%emt 0:01:36]} 21. Nxe6 {[%emt 0:02:14]} Rxe6 {[%emt 0:10:26]} 22. Qxg6 {[%emt 0:02:41]} fxg6 {[%emt 0:01:31]} 23. Nc5 {[%emt 0:00:20]} Rxe1+ {[%emt 0:00:37]} 24. Rxe1 {[%emt 0:00:08]} Rb8 {[%emt 0:00:42]} 25. Re6 {[%emt 0:04:32]} Kf7 {[%emt 0:03:39]} 26. g3 {[%emt 0:02:33]} Nc8 {[%emt 0:03:00]} 1/2-1/2

[Event "ONJK-A 2019"]
[Site "Borne"]
[Date "2019.08.07"]
[Round "4.4"]
[White "Hilwerda, Jonas"]
[Black "Klaren, Duncan"]
[Result "1-0"]
[ECO "B52"]
[WhiteElo "2263"]
[BlackElo "1964"]
[Annotator "NA"]
[PlyCount "91"]
[EventDate "2019.08.05"]
[EventType "swiss"]
[EventCountry "NED"]
[SourceTitle "playchess.com"]
[Source "ChessBase"]
[SourceQuality "1"]
[TimeControl "5400+30"]

1. e4 {[%emt 0:00:00]} c5 {[%emt 0:00:00]} 2. Nf3 {[%emt 0:00:04]} d6 {[%emt 0:00:00]} 3. Bb5+ {[%emt 0:00:26]} Bd7 {[%emt 0:00:00]} 4. Bxd7+ {[%emt 0:00:07]} Qxd7 {[%emt 0:00:00]} 5. O-O {[%emt 0:00:18]} Nc6 {[%emt 0:01:34]} 6. c3 {[%emt 0:00:26]} Nf6 {[%emt 0:00:26]} 7. Re1 {[%emt 0:00:27]} e6 {[%emt 0:00:13]} 8. d4 {[%emt 0:00:22]} cxd4 {[%emt 0:00:45]} 9. cxd4 {[%emt 0:00:08]} d5 {[%emt 0:00:05]} 10. e5 {[%emt 0:00:18]} Ne4 {[%emt 0:00:05]} 11. a3 {[%emt 0:00:42]} Be7 {[%emt 0:00:48]} 12. Qd3 {[%emt 0:00:54]} O-O {[%emt 0:02:02] B52: Sicilian: Moscow Variation with 3...Bd7} (12... Na5 13. Nbd2 Nxd2 14. Bxd2 Nc4 15. Bc1 h6 16. b3 Na5 17. Bd2 Nc6 18. h3 a5 19. Nh2 a4 20. b4 {1-0 (49) Kuzubov,Y (2656)-Ter Sahakyan,S (2572) Martuni 2014}) 13. Nbd2 {[%emt 0:00:34]} Nxd2 {[%emt 0:02:01]} 14. Bxd2 {[%emt 0:00:50]} Rac8 {[%emt 0:04:35]} 15. h4 {[%emt 0:01:26] [#]} f6 $146 {[%emt 0:06:13]} ({Predecessor:} 15... h6 16. g3 b5 17. Rec1 b4 18. Kg2 Rb8 19. axb4 Bxb4 20. Bxb4 Rxb4 21. b3 Rc8 22. Rc5 Qb7 23. Rc3 Ne7 24. Rac1 Rxc3 25. Rxc3 Rb6 {½-½ (25) Larsen,S (2457)-Shpakovsky,A (2507) ICCF email 2012}) 16. exf6 {[%emt 0:01:09]} Bxf6 {[%emt 0:00:08]} 17. Re2 {[%emt 0:06:40]} Qf7 {[%emt 0:05:24]} 18. Rae1 {[%emt 0:01:27]} Rce8 {[%emt 0:02:08]} 19. b4 {[%emt 0:12:00]} a6 {[%emt 0:05:07]} 20. a4 {[%emt 0:01:40]} b5 {[%emt 0:09:31]} 21. axb5 {[%emt 0:02:33]} axb5 {[%emt 0:00:06]} 22. Bc3 {[%emt 0:00:36]} Na7 {[%emt 0:02:15]} 23. g3 {[%emt 0:04:50]} Nc8 {[%emt 0:08:26]} 24. Qxb5 {[%emt 0:04:09]} Nd6 {[%emt 0:00:10]} 25. Qd3 {[%emt 0:00:16]} Qd7 $16 {[%emt 0:02:49]} 26. Kg2 {[%emt 0:08:40]} Rc8 {[%emt 0:07:58]} 27. Nd2 {[%emt 0:04:13]} Qb5 {[%emt 0:00:45]} 28. Qe3 {[%emt 0:19:52]} Rfe8 {[%emt 0:01:18]} 29. Qf4 {[%emt 0:03:47]} Qd7 {[%emt 0:03:33]} 30. Bb2 {[%emt 0:01:41]} Nc4 {[%emt 0:03:30]} 31. Nb3 {[%emt 0:02:23]} Qa4 {[%emt 0:03:42]} 32. Nc5 {[%emt 0:07:04]} Qxb4 {[%emt 0:00:09]} 33. Ba1 {[%emt 0:01:27]} Ra8 {[%emt 0:14:11]} 34. Nxe6 {[%emt 0:05:06]} Ra2 {[%emt 0:05:54]} 35. Qf5 {[%emt 0:02:28]} Rxe2 {[%emt 0:02:17]} 36. Rxe2 {[%emt 0:00:17]} Qd6 {[%emt 0:01:02]} 37. Bc3 {[%emt 0:01:10]} Re7 {[%emt 0:06:58]} 38. h5 {[%emt 0:03:37]} Qd7 {[%emt 0:01:16]} 39. Bb4 {[%emt 0:01:34]} Rf7 {[%emt 0:00:07]} 40. Nc7 {[%emt 0:01:52]} g6 {[%emt 0:01:29]} 41. Qxd7 {[%emt 0:01:50]} Rxd7 {[%emt 0:00:05]} 42. Re8+ {[%emt 0:00:55]} Kg7 {[%emt 0:00:04]} 43. h6+ {[%emt 0:00:31]} Kxh6 {[%emt 0:00:07]} 44. Ne6 {[%emt 0:00:01]} Bg7 {[%emt 0:00:53]} 45. g4 {[%emt 0:00:18]} Rb7 {[%emt 0:01:20]} 46. Be7 {[%emt 0:00:49]} 1-0

[Event "ONJK-A 2019"]
[Site "Borne"]
[Date "2019.08.07"]
[Round "4.5"]
[White "Butzen, Robin"]
[Black "Emans, Job"]
[Result "1/2-1/2"]
[ECO "E15"]
[WhiteElo "1967"]
[BlackElo "2089"]
[Annotator "NA"]
[PlyCount "44"]
[EventDate "2019.08.05"]
[EventType "swiss"]
[EventCountry "NED"]
[SourceTitle "playchess.com"]
[Source "ChessBase"]
[SourceQuality "1"]
[TimeControl "5400+30"]

1. d4 {[%emt 0:00:00]} Nf6 {[%emt 0:00:00]} 2. c4 {[%emt 0:00:00]} e6 {[%emt 0:00:00]} 3. Nf3 {[%emt 0:00:00]} b6 {[%emt 0:00:08]} 4. g3 {[%emt 0:00:00]} Ba6 {[%emt 0:00:53]} 5. b3 {[%emt 0:00:00]} c5 {[%emt 0:00:11]} 6. d5 {[%emt 0:04:38]} d6 {[%emt 0:02:24]} 7. Bg2 {[%emt 0:02:10]} e5 {[%emt 0:09:09]} 8. Nc3 {[%emt 0:03:26]} Nbd7 {[%emt 0:01:25]} 9. O-O {[%emt 0:01:22]} g6 {[%emt 0:02:42]} 10. a4 {[%emt 0:04:09]} Bg7 {[%emt 0:05:50]} 11. Bd2 {[%emt 0:04:14]} O-O {[%emt 0:05:41]} 12. e4 {[%emt 0:00:33]} Ne8 {[%emt 0:02:22]} 13. a5 {[%emt 0:03:19]} Nc7 {[%emt 0:02:49]} 14. Qe2 {[%emt 0:08:45]} Rb8 {[%emt 0:20:26]} 15. Nb5 {[%emt 0:07:29]} Bxb5 {[%emt 0:01:10]} 16. cxb5 {[%emt 0:00:10]} Re8 {[%emt 0:05:01]} 17. Ne1 {[%emt 0:12:37]} Nf6 {[%emt 0:05:39]} 18. Nc2 {[%emt 0:02:37]} Qd7 {[%emt 0:01:48]} 19. axb6 {[%emt 0:07:15]} axb6 {[%emt 0:01:00]} 20. Na3 {[%emt 0:00:16]} Ra8 {[%emt 0:01:42]} 21. b4 {[%emt 0:11:02]} Reb8 {[%emt 0:04:37]} 22. Rfb1 {[%emt 0:13:29]} Nfe8 {[%emt 0:05:18]} 1/2-1/2

[Event "ONJK-A 2019"]
[Site "Borne"]
[Date "2019.08.07"]
[Round "4.6"]
[White "Baselmans, Sam"]
[Black "De Bock, Thijs"]
[Result "0-1"]
[ECO "B25"]
[WhiteElo "2064"]
[BlackElo "1870"]
[Annotator "NA"]
[PlyCount "62"]
[EventDate "2019.08.05"]
[EventType "swiss"]
[EventCountry "NED"]
[SourceTitle "playchess.com"]
[Source "ChessBase"]
[SourceQuality "1"]
[TimeControl "5400+30"]

1. e4 {[%emt 0:00:00]} c5 {[%emt 0:00:00]} 2. Nc3 {[%emt 0:00:00]} Nc6 {[%emt 0:00:00]} 3. g3 {[%emt 0:00:00]} g6 {[%emt 0:00:00]} 4. Bg2 {[%emt 0:00:00]} Bg7 {[%emt 0:00:00]} 5. d3 {[%emt 0:00:00]} Rb8 {[%emt 0:00:24]} 6. f4 {[%emt 0:03:39]} b5 {[%emt 0:00:19]} 7. Nf3 {[%emt 0:00:16]} d6 {[%emt 0:00:14]} 8. O-O {[%emt 0:00:13]} e6 {[%emt 0:02:03]} 9. Rb1 {[%emt 0:01:01]} Nge7 {[%emt 0:00:08]} 10. Be3 {[%emt 0:00:15]} O-O {[%emt 0:00:10]} 11. d4 {[%emt 0:07:36]} Qb6 {[%emt 0:02:27]} 12. dxc5 {[%emt 0:14:27]} dxc5 {[%emt 0:00:37]} 13. Ne2 {[%emt 0:00:47]} Rd8 {[%emt 0:00:13]} 14. Qe1 {[%emt 0:00:05]} Nd4 {[%emt 0:03:56]} 15. Qf2 {[%emt 0:00:57]} Bb7 {[%emt 0:01:30]} 16. Nd2 {[%emt 0:15:12]} Rbc8 {[%emt 0:02:00]} 17. Nb3 {[%emt 0:04:39]} b4 {[%emt 0:13:45]} 18. Rfd1 {[%emt 0:03:01]} Nec6 {[%emt 0:06:37]} 19. e5 {[%emt 0:13:07]} Nxe2+ {[%emt 0:01:16]} 20. Qxe2 {[%emt 0:00:06]} Nd4 {[%emt 0:00:03]} 21. Bxd4 {[%emt 0:01:42]} cxd4 {[%emt 0:00:25]} 22. Bxb7 {[%emt 0:08:00]} d3+ {[%emt 0:01:00]} 23. Qf2 {[%emt 0:00:04]} dxc2 {[%emt 0:00:25]} 24. Rxd8+ {[%emt 0:00:11]} Rxd8 {[%emt 0:00:12]} 25. Rf1 {[%emt 0:00:18]} Qxb7 {[%emt 0:00:11]} 26. Qxc2 {[%emt 0:00:07]} Bf8 {[%emt 0:00:42]} 27. Qf2 {[%emt 0:03:02]} Rd5 {[%emt 0:00:39]} 28. Rc1 {[%emt 0:00:59]} a5 {[%emt 0:00:11]} 29. Nd2 {[%emt 0:01:36]} Rd3 {[%emt 0:05:14]} 30. Rc2 {[%emt 0:07:27]} Qd5 {[%emt 0:00:51]} 31. b3 {[%emt 0:00:26]} Rc3 {[%emt 0:00:36]} 0-1